fUST/lending_fUST_20250122
["ID","MTS","AMOUNT","RATE_DAILY","PERIOD"]
[349925855,1737509230067,-500.0,0.00021917,3]
[349925856,1737509230089,-500.0,0.00021917,3]
[349925857,1737509230110,-500.0,0.00021917,3]
[349925858,1737509230131,-500.0,0.00021917,3]
[349925859,1737509230153,-500.0,0.00021917,3]
[349925860,1737509230175,-500.0,0.00021917,3]
[349925861,1737509230197,-500.0,0.00021917,3]
[349925862,1737509230218,-623.15,0.00021917,3]
[349925863,1737509230241,-500.0,0.00021917,3]
[349925864,1737509230263,-500.0,0.00021917,3]
[349925865,1737509230284,-598.95,0.00021917,3]
[349925866,1737509230306,-500.0,0.00021917,3]
[349925867,1737509230333,-764.91,0.00021917,3]
[349925868,1737509230355,-216.06054861,0.00021917,3]
[349925869,1737509230378,-500.0,0.00021917,3]
[349925870,1737509230401,-500.0,0.00021917,3]
[349925871,1737509230521,-500.0,0.00021917,3]
[349925872,1737509230542,-500.0,0.00021917,3]
[349925873,1737509230564,-500.0,0.00021917,3]
[349925874,1737509230590,-500.0,0.00021917,3]
[349925875,1737509230612,-500.0,0.00021917,3]
[349925876,1737509230633,-500.0,0.00021917,3]
[349925877,1737509230654,-500.0,0.00021917,3]
[349925878,1737509230677,-500.0,0.00021917,3]
[349925879,1737509230698,-500.0,0.00021917,3]
[349925880,1737509230719,-500.0,0.00021917,3]
[349925881,1737509230742,-500.0,0.00021917,3]
[349925882,1737509230763,-500.0,0.00021917,3]
[349925883,1737509230783,-500.0,0.00021917,3]
[349925884,1737509230805,-500.0,0.00021917,3]
[349925885,1737509230827,-508.67804009,0.00021917,3]
[349925901,1737509424495,172.97007312,0.000238,120]
[349926002,1737509434498,-171.82581159,0.00019817,2]
[349926003,1737509434508,-300.0,0.00020999,2]
[349926004,1737509434518,-9031.85137341,0.00021,2]
[349926005,1737509434535,-10667.68346723,0.00021,2]
[349926006,1737509434545,-9303.49567817,0.000219,3]
[349926007,1737509434555,-668.62,0.000219,2]
[349926008,1737509434564,-5604.48509314,0.000219,3]
[349926009,1737509434574,-160.5386107,0.00021916,2]
[349926010,1737509434583,-169.69543909,0.00021917,5]
[349926011,1737509434594,-343.56195991,0.00021917,3]
[349926012,1737509434603,-500.0,0.00021917,3]
[349926013,1737509434613,-500.0,0.00021917,3]
[349926014,1737509434623,-500.0,0.00021917,3]
[349926015,1737509434632,-500.0,0.00021917,3]
[349926016,1737509434641,-187.51778524,0.00021917,3]
[349926017,1737509434650,-500.0,0.00021917,3]
[349926018,1737509434659,-500.0,0.00021917,3]
[349926019,1737509434668,-500.0,0.00021917,3]
[349926020,1737509434678,-500.0,0.00021917,3]
[349926021,1737509434687,-1135.62,0.00021917,3]
[349926022,1737509434697,-516.88,0.00021917,3]
[349926023,1737509434707,-500.0,0.00021917,3]
[349926024,1737509434716,-500.0,0.00021917,3]
[349926025,1737509434725,-500.0,0.00021917,3]
[349926026,1737509434736,-500.0,0.00021917,3]
[349926027,1737509434746,-500.0,0.00021917,3]
[349926028,1737509434756,-500.0,0.00021917,3]
[349926029,1737509434765,-500.0,0.00021917,3]
[349926030,1737509434775,-500.0,0.00021917,3]
[349926031,1737509434784,-144.49371404,0.00021917,3]
[349926032,1737509434797,-928.27628596,0.00021917,3]
[349926033,1737509434806,-933.64213739,0.00021917,3]
[349926039,1737509438927,-176.96786261,0.00021917,3]
[349926040,1737509438937,-500.0,0.00021917,3]
[349926041,1737509438950,-500.0,0.00021917,3]
[349926042,1737509438960,-500.0,0.00021917,3]
[349926043,1737509438970,-538.23,0.00021917,3]
[349926044,1737509438980,-626.85,0.00021917,3]
[349926045,1737509438990,-500.0,0.00021917,3]
[349926046,1737509439000,-500.0,0.00021917,3]
[349926047,1737509439009,-500.0,0.00021917,3]
[349926048,1737509439019,-686.19,0.00021917,3]
[349926049,1737509439028,-500.0,0.00021917,3]
[349926050,1737509439038,-500.0,0.00021917,3]
[349926051,1737509439048,-500.0,0.00021917,3]
[349926052,1737509439058,-500.0,0.00021917,3]
[349926053,1737509439067,-500.0,0.00021917,3]
[349926054,1737509439078,-760.39,0.00021917,3]
[349926055,1737509439090,-873.57,0.00021917,3]
[349926056,1737509439099,-500.0,0.00021917,3]
[349926057,1737509439108,-500.0,0.00021917,3]
[349926058,1737509439118,-265.09687818,0.00021917,3]
[349926059,1737509439130,-390.53312182,0.00021917,3]
[349926060,1737509439140,-99.71202258,0.00021917,3]
[349926061,1737509439299,-400.28797742,0.00021917,3]
[349926062,1737509439309,-500.0,0.00021917,3]
[349926063,1737509439319,-500.0,0.00021917,3]
[349926064,1737509439329,-500.0,0.00021917,3]
[349926065,1737509439338,-500.0,0.00021917,3]
[349926066,1737509439348,-500.0,0.00021917,3]
[349926067,1737509439357,-687.41,0.00021917,3]
[349926068,1737509439366,-500.0,0.00021917,3]
[349926069,1737509439377,-500.0,0.00021917,3]
[349926070,1737509439390,-500.0,0.00021917,3]
[349926071,1737509439400,-500.0,0.00021917,3]
[349926072,1737509439409,-500.0,0.00021917,3]
[349926073,1737509439418,-581.03,0.00021917,3]
[349926074,1737509439429,-63.66829758,0.00021917,3]
[349926075,1737509439441,-436.33170242,0.00021917,3]
[349926076,1737509439451,-616.46,0.00021917,3]
[349926077,1737509439462,-500.0,0.00021917,3]
[349926078,1737509439471,-500.0,0.00021917,3]
[349926079,1737509439581,-500.0,0.00021917,3]
[349926080,1737509439591,-500.0,0.00021917,3]
[349926081,1737509439601,-500.0,0.00021917,3]
[349926082,1737509439610,-506.16,0.00021917,3]
[349926083,1737509439621,-500.0,0.00021917,3]
[349926084,1737509439630,-500.0,0.00021917,3]
[349926085,1737509439640,-500.0,0.00021917,3]
[349926086,1737509439649,-500.0,0.00021917,3]
[349926087,1737509439659,-500.0,0.00021917,3]
[349926088,1737509439668,-500.0,0.00021917,3]
[349926089,1737509439678,-1115.66,0.00021917,3]
[349926090,1737509439687,-345.50289193,0.00021917,3]
[349926091,1737509439701,-500.0,0.00021917,3]
[349926092,1737509439711,-500.0,0.00021917,3]
[349926093,1737509439723,-500.0,0.00021917,3]
[349926094,1737509439739,-500.0,0.00021917,3]
[349926095,1737509439754,-502.98697505,0.00021917,3]
[349926096,1737509439766,-567.19147537,0.00021917,3]
[349926097,1737509439776,-895.77,0.00021917,3]
[349926098,1737509439785,-500.0,0.00021917,3]
[349926099,1737509439795,-500.0,0.00021917,3]
[349926100,1737509439804,-500.0,0.00021917,3]
[349926101,1737509439814,-500.0,0.00021917,3]
[349926102,1737509439823,-500.0,0.00021917,3]
[349926103,1737509439833,-191.87443764,0.00021917,3]
[349926104,1737509439843,-500.0,0.00021917,3]
[349926105,1737509439852,-500.0,0.00021917,3]
[349926106,1737509439862,-1024.32,0.00021917,3]
[349926107,1737509439871,-500.0,0.00021917,3]
[349926108,1737509439881,-500.0,0.00021917,3]
[349926109,1737509439890,-500.0,0.00021917,3]
[349926110,1737509439900,-500.0,0.00021917,3]
[349926111,1737509439909,-338.2272323,0.00021917,3]
[349926112,1737509439919,-500.0,0.00021917,3]
[349926113,1737509439928,-522.4,0.00021917,3]
[349926114,1737509439937,-500.0,0.00021917,3]
[349926115,1737509439947,-500.0,0.00021917,3]
[349926116,1737509439956,-500.0,0.00021917,3]
[349926117,1737509439965,-488.92037984,0.00021917,3]
[349926118,1737509439983,-11.07962016,0.00021917,3]
[349926119,1737509439992,-500.0,0.00021917,3]
[349926120,1737509440003,-500.0,0.00021917,3]
[349926121,1737509440013,-510.60686834,0.00021917,3]
[349926122,1737509440024,-500.0,0.00021917,3]
[349926123,1737509440038,-500.0,0.00021917,3]
[349926124,1737509440048,-500.0,0.00021917,3]
[349926125,1737509440062,-500.0,0.00021917,3]
[349926126,1737509440074,-500.0,0.00021917,3]
[349926127,1737509440084,-747.53,0.00021917,3]
[349926128,1737509440098,-500.0,0.00021917,3]
[349926129,1737509440108,-577.88,0.00021917,3]
[349926130,1737509440117,-500.0,0.00021917,3]
[349926131,1737509440127,-500.0,0.00021917,3]
[349926132,1737509440136,-500.0,0.00021917,3]
[349926133,1737509440145,-574.14,0.00021917,3]
[349926134,1737509440154,-918.51,0.00021917,3]
[349926135,1737509440164,-500.0,0.00021917,3]
[349926136,1737509440173,-938.58,0.00021917,3]
[349926137,1737509440183,-500.0,0.00021917,3]
[349926138,1737509440193,-500.0,0.00021917,3]
[349926139,1737509440203,-500.0,0.00021917,3]
[349926140,1737509440212,-685.9,0.00021917,3]
[349926141,1737509440222,-792.28,0.00021917,3]
[349926142,1737509440232,-500.0,0.00021917,3]
[349926143,1737509440241,-736.53,0.00021917,3]
[349926144,1737509440251,-711.13,0.00021917,3]
[349926145,1737509440260,-500.0,0.00021917,3]
[349926146,1737509440270,-500.0,0.00021917,3]
[349926147,1737509440279,-777.26,0.00021917,3]
[349926148,1737509440289,-500.0,0.00021917,3]
[349926149,1737509440298,-500.0,0.00021917,3]
[349926150,1737509440308,-500.0,0.00021917,3]
[349926151,1737509440316,-500.0,0.00021917,3]
[349926152,1737509440327,-2122.3,0.00021917,3]
[349926153,1737509440336,-500.0,0.00021917,3]
[349926154,1737509440345,-1050.03,0.00021917,3]
[349926156,1737509440354,-500.0,0.00021917,3]
[349926158,1737509440364,-500.0,0.00021917,3]
[349926160,1737509440373,-500.0,0.00021917,3]
[349926162,1737509440387,-2576.55,0.00021917,3]
[349926163,1737509440397,-500.0,0.00021917,3]
[349926164,1737509440406,-500.0,0.00021917,3]
[349926165,1737509440415,-102.85978031,0.00021917,3]
[349926167,1737509440428,-397.14021969,0.00021917,3]
[349926168,1737509440438,-740.59,0.00021917,3]
[349926170,1737509440447,-2043.76,0.00021917,3]
[349926171,1737509440458,-768.62,0.00021917,2]
[349926172,1737509440468,-500.0,0.00021917,3]
[349926173,1737509440477,-500.0,0.00021917,3]
[349926174,1737509440487,-500.0,0.00021917,3]
[349926175,1737509440496,-543.26032472,0.00021917,3]
[349926176,1737509440505,-500.0,0.00021917,3]
[349926177,1737509440514,-500.0,0.00021917,3]
[349926178,1737509440523,-500.0,0.00021917,3]
[349926179,1737509440532,-500.0,0.00021917,3]
[349926180,1737509440542,-500.0,0.00021917,3]
[349926181,1737509440554,-452.49,0.00021917,3]
[349926182,1737509440563,-500.0,0.00021917,3]
[349926183,1737509440573,-984.69113815,0.00021917,3]
[349926184,1737509440584,-405.85748006,0.00021917,3]
[349926192,1737509440836,-398.076,0.0002147,2]
[349926193,1737509440846,-330.154,0.00021917,3]
[349926194,1737509441009,-249.993024,0.00021917,3]
[349926195,1737509441026,-714.78080813,0.00021917,3]
[349926198,1737509444000,-4417.76653975,0.00021917,3]
[349926203,1737509444214,-2037.2853512,0.00021917,3]
[349926204,1737509444226,-1552.25165871,0.00021917,3]
[349926205,1737509444236,-500.0,0.00021917,3]
[349926206,1737509444246,-500.0,0.00021917,3]
[349926208,1737509444255,-500.0,0.00021917,3]
[349926209,1737509444265,-3491.58,0.00021917,3]
[349926210,1737509444275,-506.69847985,0.00021917,3]
[349926211,1737509444284,-500.0,0.00021917,3]
[349926212,1737509444293,-500.0,0.00021917,3]
[349926213,1737509444303,-500.0,0.00021917,3]
[349926214,1737509444312,-395.99890625,0.00021917,3]
[349926215,1737509444405,-500.0,0.00021917,3]
[349926216,1737509444415,-500.0,0.00021917,3]
[349926217,1737509444424,-950.57,0.00021917,3]
[349926218,1737509444434,-222.30197352,0.00021917,3]
[349926219,1737509444446,-375.481998,0.00021917,3]
[349926228,1737509446889,-511.15602848,0.00021917,3]
[349926229,1737509446898,-500.0,0.00021917,3]
[349926230,1737509446908,-67.09028919,0.00021917,3]
[349926231,1737509446919,-432.90971081,0.00021917,3]
[349926232,1737509446929,-231.74943779,0.00021917,3]
[349926255,1737509533745,150.0,0.00019817,2]
[349926258,1737509830282,162.323878,0.00013973,2]
[349926259,1737509835248,150.0,0.00019817,2]
[349926260,1737509856255,2400.0,0.00024,120]
[349926263,1737510099404,410.0,0.00024,120]
[349926292,1737510633648,-210.406,0.0002082,2]
[349926294,1737510633658,-375.0,0.000214,9]
[349926296,1737510633668,-150.248,0.0002151,2]
[349926297,1737510633678,-395.0,0.0002151,2]
[349926299,1737510633688,-150.0,0.0002151,2]
[349926301,1737510633698,-716.406,0.00021533,3]
[349926305,1737510633728,-9283.594,0.00021533,3]
[349926307,1737510633738,-602.34,0.000219,2]
[349926309,1737510633748,-5423.07138467,0.000219,3]
[349926310,1737510633758,-300.0,0.00021915,2]
[349926312,1737510633769,-161.95269621,0.00021916,2]
[349926794,1737510643007,-344.51056833,0.00021916,2]
[349926795,1737510643018,-310.29983735,0.00021916,2]
[349926850,1737510646012,-1157.70900221,0.00021916,2]
[349926852,1737510646022,-1468.00883956,0.00021916,2]
[349926854,1737510646032,-1468.00883956,0.00021916,2]
[349926856,1737510646041,-1468.00883956,0.00021916,2]
[349926858,1737510646051,-1468.00883956,0.00021916,2]
[349926860,1737510646060,-1468.00883956,0.00021916,2]
[349926862,1737510646069,-1468.00883956,0.00021916,2]
[349926864,1737510646079,-1468.00883956,0.00021916,2]
[349926866,1737510646088,-1468.00883956,0.00021916,2]
[349926868,1737510646097,-1468.00883956,0.00021916,2]
[349926870,1737510646108,-1468.00883956,0.00021916,2]
[349926872,1737510646117,-1468.00883956,0.00021916,2]
[349926874,1737510646126,-1468.00883956,0.00021916,2]
[349926876,1737510646136,-1468.00883956,0.00021916,2]
[349926878,1737510646145,-1468.00883956,0.00021916,2]
[349926880,1737510646154,-1468.00883956,0.00021916,2]
[349926882,1737510646164,-1468.00883956,0.00021916,2]
[349926884,1737510646173,-1468.00883956,0.00021916,2]
[349926886,1737510646182,-1468.00883956,0.00021916,2]
[349926888,1737510646192,-1468.00883956,0.00021916,2]
[349926890,1737510646201,-1468.00883956,0.00021916,2]
[349926892,1737510646210,-1468.00883956,0.00021916,2]
[349926894,1737510646220,-1468.00883956,0.00021916,2]
[349926896,1737510646230,-1468.00883956,0.00021916,2]
[349926898,1737510646239,-1468.00883956,0.00021916,2]
[349926900,1737510646249,-1468.00883956,0.00021916,2]
[349926902,1737510646258,-1468.00883956,0.00021916,2]
[349926905,1737510646268,-1468.00883956,0.00021916,2]
[349926907,1737510646277,-1468.00883956,0.00021916,2]
[349926908,1737510646286,-653.11496297,0.00021916,2]
[349927103,1737510662173,350.0,0.0002,3]
[349927104,1737510662520,349.0,0.0002,3]
[349927105,1737510725906,152.9,0.00024,120]
[349927111,1737511088263,162.323878,0.00013973,2]
[349927113,1737511193864,500.0,0.00024,120]
[349927114,1737511248948,160.0,0.00019623,4]
[349927115,1737511249353,160.0,0.00019219,3]
[349927116,1737511256523,2184.8,0.00024,120]
[349927122,1737511730937,1118.14543,0.00024,120]
[349927139,1737511832174,-160.0,0.00020027,5]
[349927141,1737511832184,-161.06130044,0.00020027,5]
[349927144,1737511832199,-205.3702097,0.00020374,2]
[349927146,1737511832209,-74.46000502,0.00020426,2]
[349927149,1737511832227,-555.36661698,0.00020426,2]
[349927151,1737511832238,-201.802,0.0002082,2]
[349927153,1737511832247,-170.05380415,0.000213,2]
[349927155,1737511832258,-1545.0,0.00021388,2]
[349927157,1737511832267,-3000.0,0.000214,2]
[349927159,1737511832276,-357.0,0.000214,9]
[349927161,1737511832286,-196.91241669,0.0002141,2]
[349927163,1737511832295,-3000.0,0.0002141,2]
[349927165,1737511832305,-300.0,0.00021419,2]
[349927167,1737511832314,-3000.0,0.0002142,2]
[349927169,1737511832327,-3000.0,0.0002143,2]
[349927171,1737511832336,-3000.0,0.0002144,2]
[349927173,1737511832345,-3000.0,0.0002145,2]
[349927175,1737511832355,-5783.157935,0.0002146,2]
[349927177,1737511832364,-3309.83452164,0.000215,3]
[349927179,1737511832374,-150.0,0.0002151,2]
[349927181,1737511832383,-150.0,0.0002151,2]
[349927183,1737511832392,-150.0,0.0002151,2]
[349927185,1737511832401,-395.0,0.0002151,2]
[349927187,1737511832410,-396.5699034,0.00021697,2]
[349927189,1737511832420,-542.1,0.000219,2]
[349927191,1737511832430,-189.0,0.000219,2]
[349927193,1737511832439,-189.0,0.000219,14]
[349927195,1737511832449,-189.0,0.000219,15]
[349927197,1737511832458,-188.29364931,0.000219,12]
[349927199,1737511832467,-780.84528778,0.00021916,5]
[349927201,1737511832477,-814.89387659,0.00021916,2]
[349927203,1737511832486,-1468.00883956,0.00021916,2]
[349927205,1737511832495,-1468.00883956,0.00021916,2]
[349927206,1737511832504,-1468.00883956,0.00021916,2]
[349927208,1737511832514,-1468.00883956,0.00021916,2]
[349927210,1737511832523,-1468.00883956,0.00021916,2]
[349927212,1737511832533,-1468.00883956,0.00021916,2]
[349927214,1737511832542,-1468.00883956,0.00021916,2]
[349927216,1737511832551,-1468.00883956,0.00021916,2]
[349927218,1737511832560,-1468.00883956,0.00021916,2]
[349927220,1737511832571,-1468.00883956,0.00021916,2]
[349927222,1737511832580,-1468.00883956,0.00021916,2]
[349927224,1737511832589,-630.8566969,0.00021916,2]
[349927226,1737511832600,-302.0,0.00021916,2]
[349927230,1737511832621,-535.15214266,0.00021916,2]
[349927232,1737511832630,-932.25930215,0.00021916,2]
[349927234,1737511832646,-535.74953741,0.00021916,2]
[349927236,1737511832656,-1468.00883956,0.00021916,2]
[349927238,1737511832667,-1468.00883956,0.00021916,2]
[349927240,1737511832677,-1468.00883956,0.00021916,2]
[349927242,1737511832686,-1468.00883956,0.00021916,2]
[349927244,1737511832695,-425.86190465,0.00021916,2]
[349927363,1737511838066,-1042.14693491,0.00021916,2]
[349927364,1737511838077,-1468.00883956,0.00021916,2]
[349927365,1737511838087,-1468.00883956,0.00021916,2]
[349927366,1737511838098,-1468.00883956,0.00021916,2]
[349927367,1737511838108,-1468.00883956,0.00021916,2]
[349927368,1737511838118,-1468.00883956,0.00021916,2]
[349927369,1737511838129,-1468.00883956,0.00021916,2]
[349927370,1737511838139,-1468.00883956,0.00021916,2]
[349927371,1737511838150,-1468.00883956,0.00021916,2]
[349927372,1737511838166,-1468.00883956,0.00021916,2]
[349927373,1737511838177,-1468.00883956,0.00021916,2]
[349927374,1737511838187,-1468.00883956,0.00021916,2]
[349927375,1737511838199,-1449.06679001,0.00021916,2]
[349927376,1737511838210,-1449.06679001,0.00021916,2]
[349927377,1737511838220,-1449.06679001,0.00021916,2]
[349927378,1737511838230,-1449.06679001,0.00021916,2]
[349927379,1737511838240,-1449.06679001,0.00021916,2]
[349927380,1737511838250,-1449.06679001,0.00021916,2]
[349927381,1737511838260,-1449.06679001,0.00021916,2]
[349927382,1737511838270,-1449.06679001,0.00021916,2]
[349927383,1737511838280,-1449.06679001,0.00021916,2]
[349927384,1737511838290,-1449.06679001,0.00021916,2]
[349927385,1737511838300,-1449.06679001,0.00021916,2]
[349927387,1737511838310,-1449.06679001,0.00021916,2]
[349927389,1737511838320,-1449.06679001,0.00021916,2]
[349927390,1737511838330,-1449.06679001,0.00021916,2]
[349927391,1737511838340,-1449.06679001,0.00021916,2]
[349927392,1737511838350,-1449.06679001,0.00021916,2]
[349927393,1737511838360,-1449.06679001,0.00021916,2]
[349927394,1737511838369,-1449.06679001,0.00021916,2]
[349927395,1737511838379,-1449.06679001,0.00021916,2]
[349927396,1737511838389,-1449.06679001,0.00021916,2]
[349927397,1737511838398,-1449.06679001,0.00021916,2]
[349927398,1737511838408,-1449.06679001,0.00021916,2]
[349927399,1737511838420,-1449.06679001,0.00021916,2]
[349927400,1737511838431,-1449.06679001,0.00021916,2]
[349927401,1737511838441,-1449.06679001,0.00021916,2]
[349927402,1737511838450,-1449.06679001,0.00021916,2]
[349927403,1737511838460,-1449.06679001,0.00021916,2]
[349927404,1737511838469,-1449.06679001,0.00021916,2]
[349927405,1737511838479,-1449.06679,0.00021916,2]
[349927406,1737511838489,-1449.06679,0.00021916,2]
[349927407,1737511838500,-1449.06678999,0.00021916,2]
[349927408,1737511838509,-500.0,0.00021916,2]
[349927409,1737511838519,-500.0,0.00021916,2]
[349927410,1737511838529,-500.0,0.00021916,2]
[349927411,1737511838539,-500.0,0.00021916,2]
[349927412,1737511838548,-500.0,0.00021916,2]
[349927413,1737511838558,-500.0,0.00021916,2]
[349927414,1737511838568,-500.0,0.00021916,2]
[349927415,1737511838577,-287.70251464,0.00021916,2]
[349927416,1737511838586,-3398.29050873,0.00021916,2]
[349927417,1737511838596,-510.92445549,0.00021916,2]
[349927418,1737511838605,-500.0,0.00021917,3]
[349927419,1737511838615,-500.0,0.00021917,3]
[349927420,1737511838625,-500.0,0.00021917,3]
[349927421,1737511838635,-554.38,0.00021917,3]
[349927422,1737511838644,-500.0,0.00021917,3]
[349927423,1737511838653,-681.94,0.00021917,3]
[349927424,1737511838664,-514.51116577,0.00021917,3]
[349927425,1737511838674,-500.0,0.00021917,3]
[349927426,1737511838683,-513.52161289,0.00021917,3]
[349927427,1737511838692,-500.0,0.00021917,3]
[349927428,1737511838703,-500.0,0.00021917,3]
[349927429,1737511838712,-500.0,0.00021917,3]
[349927430,1737511838723,-500.0,0.00021917,3]
[349927431,1737511838733,-500.0,0.00021917,3]
[349927432,1737511838743,-500.0,0.00021917,3]
[349927433,1737511838752,-500.0,0.00021917,3]
[349927434,1737511838761,-500.0,0.00021917,3]
[349927435,1737511838771,-500.0,0.00021917,3]
[349927436,1737511838780,-500.0,0.00021917,3]
[349927437,1737511838789,-500.0,0.00021917,3]
[349927438,1737511838798,-507.68629364,0.00021917,3]
[349927439,1737511838808,-787.42,0.00021917,3]
[349927440,1737511838817,-500.0,0.00021917,3]
[349927441,1737511838828,-500.0,0.00021917,3]
[349927442,1737511838837,-500.0,0.00021917,3]
[349927443,1737511838846,-522.11874881,0.00021917,3]
[349927444,1737511838855,-500.0,0.00021917,3]
[349927445,1737511838865,-500.0,0.00021917,3]
[349927446,1737511838875,-502.52159794,0.00021917,3]
[349927447,1737511838885,-500.0,0.00021917,3]
[349927448,1737511838894,-500.0,0.00021917,3]
[349927449,1737511838904,-639.48,0.00021917,3]
[349927450,1737511838913,-500.0,0.00021917,3]
[349927451,1737511838923,-500.0,0.00021917,3]
[349927452,1737511838933,-521.20634533,0.00021917,3]
[349927453,1737511838943,-500.0,0.00021917,3]
[349927454,1737511838953,-514.89781992,0.00021917,3]
[349927455,1737511838963,-500.0,0.00021917,3]
[349927456,1737511838972,-500.0,0.00021917,3]
[349927457,1737511838982,-500.0,0.00021917,3]
[349927458,1737511838992,-542.64924322,0.00021917,3]
[349927459,1737511839002,-512.95061355,0.00021917,3]
[349927460,1737511839012,-533.62805799,0.00021917,3]
[349927461,1737511839022,-318.52376289,0.00021917,3]
[349927462,1737511839032,-500.0,0.00021917,3]
[349927463,1737511839042,-500.0,0.00021917,3]
[349927464,1737511839052,-500.0,0.00021917,3]
[349927465,1737511839062,-500.0,0.00021917,3]
[349927466,1737511839156,-500.0,0.00021917,3]
[349927467,1737511839166,-500.0,0.00021917,3]
[349927468,1737511839177,-500.0,0.00021917,3]
[349927469,1737511839188,-597.73,0.00021917,3]
[349927470,1737511839199,-505.60461757,0.00021917,3]
[349927471,1737511839210,-500.0,0.00021917,3]
[349927472,1737511839220,-496.90956157,0.00021917,3]
[349927473,1737511839230,-500.0,0.00021917,3]
[349927474,1737511839241,-500.0,0.00021917,3]
[349927475,1737511839250,-500.0,0.00021917,3]
[349927476,1737511839259,-733.81,0.00021917,3]
[349927477,1737511839269,-500.0,0.00021917,3]
[349927478,1737511839280,-500.0,0.00021917,3]
[349927479,1737511839290,-500.0,0.00021917,3]
[349927480,1737511839299,-817.62,0.00021917,3]
[349927481,1737511839308,-500.0,0.00021917,3]
[349927482,1737511839318,-500.0,0.00021917,3]
[349927483,1737511839327,-500.0,0.00021917,3]
[349927484,1737511839337,-500.0,0.00021917,3]
[349927485,1737511839347,-500.0,0.00021917,3]
[349927486,1737511839357,-506.14626764,0.00021917,3]
[349927487,1737511839367,-500.0,0.00021917,3]
[349927488,1737511839377,-500.0,0.00021917,3]
[349927489,1737511839387,-500.0,0.00021917,3]
[349927490,1737511839397,-510.10600067,0.00021917,3]
[349927491,1737511839408,-504.97285247,0.00021917,3]
[349927492,1737511839420,-500.0,0.00021917,3]
[349927493,1737511839429,-500.0,0.00021917,3]
[349927494,1737511839439,-542.48234951,0.00021917,3]
[349927495,1737511839449,-500.0,0.00021917,3]
[349927496,1737511839459,-516.87,0.00021917,3]
[349927497,1737511839468,-500.0,0.00021917,3]
[349927498,1737511839478,-500.0,0.00021917,3]
[349927499,1737511839488,-486.27422769,0.00021917,3]
[349927500,1737511839498,-1065.48,0.00021917,3]
[349927501,1737511839509,-1089.7,0.00021917,3]
[349927502,1737511839519,-500.0,0.00021917,3]
[349927503,1737511839530,-601.44,0.00021917,3]
[349927504,1737511839539,-359.58507949,0.00021917,3]
[349927505,1737511839549,-500.0,0.00021917,3]
[349927506,1737511839558,-150.0,0.00021917,3]
[349927507,1737511839567,-500.0,0.00021917,3]
[349927508,1737511839577,-1061.66,0.00021917,3]
[349927510,1737511839587,-500.0,0.00021917,3]
[349927512,1737511839597,-500.0,0.00021917,3]
[349927514,1737511839607,-500.0,0.00021917,3]
[349927516,1737511839617,-500.0,0.00021917,3]
[349927518,1737511839626,-500.0,0.00021917,3]
[349927520,1737511839636,-500.0,0.00021917,3]
[349927522,1737511839647,-500.0,0.00021917,3]
[349927524,1737511839658,-837.61,0.00021917,3]
[349927526,1737511839670,-500.0,0.00021917,3]
[349927528,1737511839681,-500.0,0.00021917,3]
[349927531,1737511839692,-500.0,0.00021917,3]
[349927532,1737511839702,-659.48,0.00021917,3]
[349927534,1737511839713,-511.44650609,0.00021917,3]
[349927535,1737511839723,-500.0,0.00021917,3]
[349927536,1737511839733,-500.0,0.00021917,3]
[349927537,1737511839743,-557.06,0.00021917,3]
[349927539,1737511839757,-500.0,0.00021917,3]